[Event "Vasteras Open 2018"]
[Site "Vasteras"]
[Date "2018.09.30"]
[Round "8"]
[White "Pantzar, Milton"]
[Black "Marttala, Thomas"]
[Result "1/2-1/2"]
[ECO "A22"]
[WhiteElo "2300"]
[BlackElo "2177"]
[Annotator "NA"]
[PlyCount "89"]
[EventDate "2018.09.28"]
[EventCountry "SWE"]
[SourceTitle "playchess.com"]
[Source "ChessBase"]
[SourceQuality "1"]
[TimeControl "5400+30"]

1. c4 {[%emt 0:00:00]} e5 {[%emt 0:00:16]} 2. Nc3 {[%emt 0:00:06]} Nf6 {[%emt 0:02:39]} 3. e3 {[%emt 0:00:33]} Bb4 {[%emt 0:04:31]} 4. Nge2 {[%emt 0:02:17]} O-O {[%emt 0:02:18]} 5. a3 {[%emt 0:00:51]} Bxc3 {[%emt 0:00:52]} 6. Nxc3 {[%emt 0:01:20]} d6 {[%emt 0:04:33]} 7. Be2 {[%emt 0:04:29]} a5 {[%emt 0:09:09]} 8. O-O {[%emt 0:01:46]} Nc6 {[%emt 0:00:54]} 9. b3 {[%emt 0:09:07]} Re8 {[%emt 0:07:14]} 10. Bb2 {[%emt 0:01:24]} Bf5 {[%emt 0:12:26]} 11. f4 {[%emt 0:16:41]} exf4 {[%emt 0:07:31]} 12. Rxf4 {[%emt 0:00:36]} Bg6 {[%emt 0:00:12]} 13. Qe1 {[%emt 0:08:41]} Ne5 {[%emt 0:01:43]} 14. Qh4 {[%emt 0:09:24]} Bd3 {[%emt 0:03:50]} 15. Qh3 {[%emt 0:22:16]} Bxe2 {[%emt 0:05:40]} 16. Nxe2 {[%emt 0:00:06]} Nd3 {[%emt 0:00:16]} 17. Rxf6 {[%emt 0:00:11]} Nxb2 {[%emt 0:00:15]} 18. Rf3 {[%emt 0:02:30]} Nd3 {[%emt 0:01:10]} 19. Raf1 {[%emt 0:01:36]} Ne5 {[%emt 0:09:05]} 20. Rg3 {[%emt 0:00:37]} c6 {[%emt 0:08:40]} 21. Nd4 {[%emt 0:00:56]} Ng6 {[%emt 0:01:28]} 22. Qf5 {[%emt 0:02:27]} Qc7 {[%emt 0:04:00]} 23. Qg4 {[%emt 0:03:57]} d5 {[%emt 0:02:03]} 24. cxd5 {[%emt 0:01:43]} cxd5 {[%emt 0:00:12]} 25. Rh3 {[%emt 0:00:58]} Re5 {[%emt 0:02:12]} 26. Nf5 {[%emt 0:00:58]} Ra6 {[%emt 0:02:18]} 27. Qg3 {[%emt 0:02:16]} Rc6 {[%emt 0:00:56]} 28. Qf2 {[%emt 0:01:20]} Rc1 {[%emt 0:00:36]} 29. Nd4 {[%emt 0:01:24]} Re8 {[%emt 0:01:42]} 30. Rf3 {[%emt 0:00:25]} Ne5 {[%emt 0:00:45]} 31. Rf5 {[%emt 0:00:40]} g6 {[%emt 0:00:59]} 32. Qg3 {[%emt 0:01:05]} Rxf1+ {[%emt 0:01:41]} 33. Rxf1 {[%emt 0:00:11]} Kh8 {[%emt 0:01:23]} 34. h3 {[%emt 0:00:38]} Qe7 {[%emt 0:00:27]} 35. a4 {[%emt 0:00:36]} f5 {[%emt 0:00:23]} 36. Rc1 {[%emt 0:00:38]} Qb4 {[%emt 0:00:55]} 37. Rc8 {[%emt 0:00:43]} Qe7 {[%emt 0:00:16]} 38. Rxe8+ {[%emt 0:00:53]} Qxe8 {[%emt 0:00:02]} 39. Qh4 {[%emt 0:00:55]} Kg7 {[%emt 0:00:20]} 40. Qg5 {[%emt 0:00:15]} Nf7 {[%emt 0:01:13]} 41. Qg3 {[%emt 0:00:48]} Qe5 {[%emt 0:00:29]} 42. Qe1 {[%emt 0:00:44]} Nd6 {[%emt 0:00:34]} 43. Qa1 {[%emt 0:01:07]} Kh6 {[%emt 0:00:56]} 44. Qe1 {[%emt 0:00:40]} Kg7 {[%emt 0:00:09]} 45. Qa1 {[%emt 0:00:19]} 1/2-1/2

[Event "Vasteras Open 2018"]
[Site "Vasteras"]
[Date "2018.09.30"]
[Round "8"]
[White "Larsson, Anders"]
[Black "Akesson, Ralf"]
[Result "1/2-1/2"]
[ECO "A46"]
[WhiteElo "2238"]
[BlackElo "2372"]
[Annotator "NA"]
[PlyCount "30"]
[EventDate "2018.09.28"]
[EventCountry "SWE"]
[SourceTitle "playchess.com"]
[Source "ChessBase"]
[SourceQuality "1"]
[TimeControl "5400+30"]

1. d4 {[%emt 0:00:22]} Nf6 {[%emt 0:00:00]} 2. Nf3 {[%emt 0:00:21]} e6 {[%emt 0:00:28]} 3. Bg5 {[%emt 0:00:27]} c5 {[%emt 0:02:41]} 4. e3 {[%emt 0:05:50]} Qb6 {[%emt 0:02:10]} 5. Qc1 {[%emt 0:02:08]} Ne4 {[%emt 0:03:05]} 6. h4 {[%emt 0:01:47]} d5 {[%emt 0:01:57]} 7. c3 {[%emt 0:00:39]} Nc6 {[%emt 0:02:50]} 8. Nbd2 {[%emt 0:04:14]} Nxd2 {[%emt 0:08:35]} 9. Qxd2 {[%emt 0:01:01]} Bd6 {[%emt 0:01:24]} 10. O-O-O {[%emt 0:03:14]} Bd7 {[%emt 0:03:43]} 11. Bf4 {[%emt 0:05:16]} Bxf4 {[%emt 0:03:42]} 12. exf4 {[%emt 0:01:03]} cxd4 {[%emt 0:06:43]} 13. Nxd4 {[%emt 0:00:11]} Rc8 {[%emt 0:02:37]} 14. Kb1 {[%emt 0:00:31]} Nxd4 {[%emt 0:03:57]} 15. Qxd4 {[%emt 0:00:39]} Qxd4 1/2-1/2